{"text_format":"1","workbook":"xlsx","n_sheets":4,"sheets":["Лист11","Лист1(а)","Лист2","Лист1"],"not_rendered":{"charts":0,"images":0,"macros":1,"external_links":0,"defined_names":1,"comments":1,"pivot_tables":0},"unopened":[],"bounds":{"document_bytes":16777216,"sheet_cells":100000,"rows_first":2000,"rows_last":500,"rows_between":2000,"halvings":0,"cell_chars":16384,"cell_head_chars":4096},"cells_cut":0,"cells_raw":0,"read":"whole","date_system":"1900"}

{"sheet":"Лист11","index":0,"n_rows":23,"n_cols":6,"rows_kept":23,"cut":false,"hidden":false,"merged":[]}
["Название компании","Адрес","Руководитель","Телефон","Направление деятельности","Собственность"]
[{"$f":"IFERROR(VLOOKUP(ROW($A1)&A$1,Лист2!$B$1:$E$113,4,0),\"\")","v":"«АРД-М» ООО"},{"$f":"IFERROR(VLOOKUP(ROW($A1)&B$1,Лист2!$B$1:$E$113,4,0),\"\")","v":"361411, Кабардино-Балкарская Республика, Чегемский р-н, с. Нартан"},{"$f":"IFERROR(VLOOKUP(ROW($A1)&C$1,Лист2!$B$1:$E$113,4,0),\"\")","v":"Хагабанов Сафраил Хаутиевич"},{"$f":"IFERROR(VLOOKUP(ROW($A1)&D$1,Лист2!$B$1:$E$113,4,0),\"\")","v":"(86630) 4-12-95"},{"$f":"IFERROR(VLOOKUP(ROW($A1)&E$1,Лист2!$B$1:$E$113,4,0),\"\")","v":"зерноводство"},{"$f":"IFERROR(VLOOKUP(ROW($A1)&F$1,Лист2!$B$1:$E$113,4,0),\"\")","v":"частная"}]
[{"$f":"IFERROR(VLOOKUP(ROW($A2)&A$1,Лист2!$B$1:$E$113,4,0),\"\")","v":"«БАКСАНСКИЙ» ПЛОДОПИТОМНИК"},{"$f":"IFERROR(VLOOKUP(ROW($A2)&B$1,Лист2!$B$1:$E$113,4,0),\"\")","v":"361510, Кабардино-Балкарская Республика, Баксанский р-н, с. Псычох"},{"$f":"IFERROR(VLOOKUP(ROW($A2)&C$1,Лист2!$B$1:$E$113,4,0),\"\")","v":"Архестов Хасан Кадырович"},{"$f":"IFERROR(VLOOKUP(ROW($A2)&D$1,Лист2!$B$1:$E$113,4,0),\"\")","v":"(86634) 7-41-38, 7-41-48"},{"$f":"IFERROR(VLOOKUP(ROW($A2)&E$1,Лист2!$B$1:$E$113,4,0),\"\")","v":"выращивание плодово-ягодных культур"},{"$f":"IFERROR(VLOOKUP(ROW($A2)&F$1,Лист2!$B$1:$E$113,4,0),\"\")","v":"государственная"}]
[{"$f":"IFERROR(VLOOKUP(ROW($A3)&A$1,Лист2!$B$1:$E$113,4,0),\"\")","v":"«БЕЛОКАМЕНСКОЕ» СЕЛЬХОЗПРЕДПРИЯТИЕ (ООО)"},{"$f":"IFERROR(VLOOKUP(ROW($A3)&B$1,Лист2!$B$1:$E$113,4,0),\"\")","v":"361720, Кабардино-Балкарская Республика, Зольский р-н, с. Белокаменское, ул. Центральная, 1"},{"$f":"IFERROR(VLOOKUP(ROW($A3)&C$1,Лист2!$B$1:$E$113,4,0),\"\")","v":"Шабатоков Резван Хасинович"},{"$f":"IFERROR(VLOOKUP(ROW($A3)&D$1,Лист2!$B$1:$E$113,4,0),\"\")","v":"(86637) 7-57-18"},{"$f":"IFERROR(VLOOKUP(ROW($A3)&E$1,Лист2!$B$1:$E$113,4,0),\"\")","v":"выращивание зернобобовых культур; животноводство молочное"},{"$f":"IFERROR(VLOOKUP(ROW($A3)&F$1,Лист2!$B$1:$E$113,4,0),\"\")","v":"частная"}]
[{"$f":"IFERROR(VLOOKUP(ROW($A4)&A$1,Лист2!$B$1:$E$113,4,0),\"\")","v":"«ВИНОГРАД» НАРОДНОЕ ПРЕДПРИЯТИЕ (ЗАО)"},{"$f":"IFERROR(VLOOKUP(ROW($A4)&B$1,Лист2!$B$1:$E$113,4,0),\"\")","v":"361044, Кабардино-Балкарская Республика, г. Прохладный, ул. Горького, 59"},{"$f":"IFERROR(VLOOKUP(ROW($A4)&C$1,Лист2!$B$1:$E$113,4,0),\"\")","v":"Тхалиджоков Сафарби Лионович"},{"$f":"IFERROR(VLOOKUP(ROW($A4)&D$1,Лист2!$B$1:$E$113,4,0),\"\")","v":"(86631) 7-74-20, 7-70-50, 7-78-38"},{"$f":"IFERROR(VLOOKUP(ROW($A4)&E$1,Лист2!$B$1:$E$113,4,0),\"\")","v":"виноградарство; животноводство"},{"$f":"IFERROR(VLOOKUP(ROW($A4)&F$1,Лист2!$B$1:$E$113,4,0),\"\")","v":"частная"}]
[{"$f":"IFERROR(VLOOKUP(ROW($A5)&A$1,Лист2!$B$1:$E$113,4,0),\"\")","v":"«ВЛАДИМИР» ПРЕДПРИЯТИЕ"},{"$f":"IFERROR(VLOOKUP(ROW($A5)&B$1,Лист2!$B$1:$E$113,4,0),\"\")","v":"361405, Кабардино-Балкарская Республика, Чегемский р-н, с. Лечинкай"},{"$f":"IFERROR(VLOOKUP(ROW($A5)&C$1,Лист2!$B$1:$E$113,4,0),\"\")","v":"Дышеков Атмир Исуфович"},{"$f":"IFERROR(VLOOKUP(ROW($A5)&D$1,Лист2!$B$1:$E$113,4,0),\"\")","v":"(909) 491-21-02"},{"$f":"IFERROR(VLOOKUP(ROW($A5)&E$1,Лист2!$B$1:$E$113,4,0),\"\")","v":"животноводство"},{"$f":"IFERROR(VLOOKUP(ROW($A5)&F$1,Лист2!$B$1:$E$113,4,0),\"\")","v":"частная"}]
[{"$f":"IFERROR(VLOOKUP(ROW($A6)&A$1,Лист2!$B$1:$E$113,4,0),\"\")","v":"«ВОСХОД» ООО"},{"$f":"IFERROR(VLOOKUP(ROW($A6)&B$1,Лист2!$B$1:$E$113,4,0),\"\")","v":"361011, Кабардино-Балкарская Республика, Прохладненский р-н, с. Пролетарское"},{"$f":"IFERROR(VLOOKUP(ROW($A6)&C$1,Лист2!$B$1:$E$113,4,0),\"\")","v":"Кехер Олег Аликберович"},{"$f":"IFERROR(VLOOKUP(ROW($A6)&D$1,Лист2!$B$1:$E$113,4,0),\"\")","v":"(86631) 6-30-00"},{"$f":"IFERROR(VLOOKUP(ROW($A6)&E$1,Лист2!$B$1:$E$113,4,0),\"\")","v":"животноводство; растениеводство"},{"$f":"IFERROR(VLOOKUP(ROW($A6)&F$1,Лист2!$B$1:$E$113,4,0),\"\")","v":"частная"}]
[{"$f":"IFERROR(VLOOKUP(ROW($A7)&A$1,Лист2!$B$1:$E$113,4,0),\"\")","v":"«ДАЛЬНИЙ» СП. АДМИНИСТРАЦИЯ РАЙОНА"},{"$f":"IFERROR(VLOOKUP(ROW($A7)&B$1,Лист2!$B$1:$E$113,4,0),\"\")","v":"361013, Кабардино-Балкарская Республика, Прохладненский р-н, с. Дальнее"},{"$f":"IFERROR(VLOOKUP(ROW($A7)&C$1,Лист2!$B$1:$E$113,4,0),\"\")","v":""},{"$f":"IFERROR(VLOOKUP(ROW($A7)&D$1,Лист2!$B$1:$E$113,4,0),\"\")","v":"(86631) 9-43-23"},{"$f":"IFERROR(VLOOKUP(ROW($A7)&E$1,Лист2!$B$1:$E$113,4,0),\"\")","v":"животноводство; растениеводство"},{"$f":"IFERROR(VLOOKUP(ROW($A7)&F$1,Лист2!$B$1:$E$113,4,0),\"\")","v":"государственная"}]
[{"$f":"IFERROR(VLOOKUP(ROW($A8)&A$1,Лист2!$B$1:$E$113,4,0),\"\")","v":"ЗАО ИМЕНИ БАЙСУЛТАНОВА"},{"$f":"IFERROR(VLOOKUP(ROW($A8)&B$1,Лист2!$B$1:$E$113,4,0),\"\")","v":"361424, Кабардино-Балкарская Республика, Чегемский р-н, с. Яникой, ул. Мечиева, 84"},{"$f":"IFERROR(VLOOKUP(ROW($A8)&C$1,Лист2!$B$1:$E$113,4,0),\"\")","v":"Гелястанов Мухтар Ахматович"},{"$f":"IFERROR(VLOOKUP(ROW($A8)&D$1,Лист2!$B$1:$E$113,4,0),\"\")","v":"(86630) 7-82-48; (928) 700-11-50"},{"$f":"IFERROR(VLOOKUP(ROW($A8)&E$1,Лист2!$B$1:$E$113,4,0),\"\")","v":"животноводство молочное"},{"$f":"IFERROR(VLOOKUP(ROW($A8)&F$1,Лист2!$B$1:$E$113,4,0),\"\")","v":"акционерная"}]
[{"$f":"IFERROR(VLOOKUP(ROW($A9)&A$1,Лист2!$B$1:$E$113,4,0),\"\")","v":"ЗАО ИМЕНИ КАЛАБЕКОВА"},{"$f":"IFERROR(VLOOKUP(ROW($A9)&B$1,Лист2!$B$1:$E$113,4,0),\"\")","v":"361416, Кабардино-Балкарская Республика, Чегемский р-н, с. Булунгу, ул. Кулиева, 45"},{"$f":"IFERROR(VLOOKUP(ROW($A9)&C$1,Лист2!$B$1:$E$113,4,0),\"\")","v":"Кулиев Зафир Магомедович"},{"$f":"IFERROR(VLOOKUP(ROW($A9)&D$1,Лист2!$B$1:$E$113,4,0),\"\")","v":"(86630) 9-43-44, 7-97-46"},{"$f":"IFERROR(VLOOKUP(ROW($A9)&E$1,Лист2!$B$1:$E$113,4,0),\"\")","v":"животноводство"},{"$f":"IFERROR(VLOOKUP(ROW($A9)&F$1,Лист2!$B$1:$E$113,4,0),\"\")","v":"акционерная"}]
[{"$f":"IFERROR(VLOOKUP(ROW($A10)&A$1,Лист2!$B$1:$E$113,4,0),\"\")","v":"«ЗАРЯ» ООО"},{"$f":"IFERROR(VLOOKUP(ROW($A10)&B$1,Лист2!$B$1:$E$113,4,0),\"\")","v":"361013, Кабардино-Балкарская Республика, Прохладненский р-н, с. Дальнее"},{"$f":"IFERROR(VLOOKUP(ROW($A10)&C$1,Лист2!$B$1:$E$113,4,0),\"\")","v":"Асманов К.М."},{"$f":"IFERROR(VLOOKUP(ROW($A10)&D$1,Лист2!$B$1:$E$113,4,0),\"\")","v":"(86631) 7-01-53"},{"$f":"IFERROR(VLOOKUP(ROW($A10)&E$1,Лист2!$B$1:$E$113,4,0),\"\")","v":"животноводство; растениеводство"},{"$f":"IFERROR(VLOOKUP(ROW($A10)&F$1,Лист2!$B$1:$E$113,4,0),\"\")","v":"частная"}]
[{"$f":"IFERROR(VLOOKUP(ROW($A11)&A$1,Лист2!$B$1:$E$113,4,0),\"\")","v":"«КАМЫШОВАЯ БАЛКА» СЕЛЬХОЗПРЕДПРИЯТИЕ (ООО)"},{"$f":"IFERROR(VLOOKUP(ROW($A11)&B$1,Лист2!$B$1:$E$113,4,0),\"\")","v":"361715, Кабардино-Балкарская Республика, Зольский р-н, с. Камлюково, ул. Калмыкова, 54"},{"$f":"IFERROR(VLOOKUP(ROW($A11)&C$1,Лист2!$B$1:$E$113,4,0),\"\")","v":"Канихов Ахмет Наурбиевич"},{"$f":"IFERROR(VLOOKUP(ROW($A11)&D$1,Лист2!$B$1:$E$113,4,0),\"\")","v":"(86637) 7-33-30"},{"$f":"IFERROR(VLOOKUP(ROW($A11)&E$1,Лист2!$B$1:$E$113,4,0),\"\")","v":"растениеводство"},{"$f":"IFERROR(VLOOKUP(ROW($A11)&F$1,Лист2!$B$1:$E$113,4,0),\"\")","v":"частная"}]
[{"$f":"IFERROR(VLOOKUP(ROW($A12)&A$1,Лист2!$B$1:$E$113,4,0),\"\")","v":"«КАСАЕВО» СЕЛЬСКОХОЗЯЙСТВЕННЫЙ ПРОИЗВОДСТВЕННЫЙ КООПЕРАТИВ"},{"$f":"IFERROR(VLOOKUP(ROW($A12)&B$1,Лист2!$B$1:$E$113,4,0),\"\")","v":"361503, Кабардино-Балкарская Республика, Баксанский р-н, с. Баксаненок, ул. Березгова, 120"},{"$f":"IFERROR(VLOOKUP(ROW($A12)&C$1,Лист2!$B$1:$E$113,4,0),\"\")","v":"Кимахов Гумарби Ксниублевич"},{"$f":"IFERROR(VLOOKUP(ROW($A12)&D$1,Лист2!$B$1:$E$113,4,0),\"\")","v":"(86634) 3-61-79; (926) 690-61-65"},{"$f":"IFERROR(VLOOKUP(ROW($A12)&E$1,Лист2!$B$1:$E$113,4,0),\"\")","v":"выращивание зернобобовых культур"},{"$f":"IFERROR(VLOOKUP(ROW($A12)&F$1,Лист2!$B$1:$E$113,4,0),\"\")","v":"частная"}]
[{"$f":"IFERROR(VLOOKUP(ROW($A13)&A$1,Лист2!$B$1:$E$113,4,0),\"\")","v":"КОЛХОЗ ИМЕНИ ПЕТРОВЫХ"},{"$f":"IFERROR(VLOOKUP(ROW($A13)&B$1,Лист2!$B$1:$E$113,4,0),\"\")","v":"361015, Кабардино-Балкарская Республика, Прохладненский р-н, стан. Ека-териноградская, ул. Ленина, 3"},{"$f":"IFERROR(VLOOKUP(ROW($A13)&C$1,Лист2!$B$1:$E$113,4,0),\"\")","v":"Говоров Сергей Анатольевич"},{"$f":"IFERROR(VLOOKUP(ROW($A13)&D$1,Лист2!$B$1:$E$113,4,0),\"\")","v":"(86631) 7-81-60, 7-85-65"},{"$f":"IFERROR(VLOOKUP(ROW($A13)&E$1,Лист2!$B$1:$E$113,4,0),\"\")","v":"зерноводство"},{"$f":"IFERROR(VLOOKUP(ROW($A13)&F$1,Лист2!$B$1:$E$113,4,0),\"\")","v":"коллективная"}]
[{"$f":"IFERROR(VLOOKUP(ROW($A14)&A$1,Лист2!$B$1:$E$113,4,0),\"\")","v":"«КОНСТАНТИНОВСКОЕ» СЕЛЬХОЗПРЕДПРИЯТИЕ (ООО)"},{"$f":"IFERROR(VLOOKUP(ROW($A14)&B$1,Лист2!$B$1:$E$113,4,0),\"\")","v":"361504, Кабардино-Балкарская Республика, Баксанский р-н, с. Кременчуг-Константиновское, ул. Садовая,"},{"$f":"IFERROR(VLOOKUP(ROW($A14)&C$1,Лист2!$B$1:$E$113,4,0),\"\")","v":"Лобко Александр Викторович"},{"$f":"IFERROR(VLOOKUP(ROW($A14)&D$1,Лист2!$B$1:$E$113,4,0),\"\")","v":"(906) 483-66-06"},{"$f":"IFERROR(VLOOKUP(ROW($A14)&E$1,Лист2!$B$1:$E$113,4,0),\"\")","v":"выращивание зернобобовых культур"},{"$f":"IFERROR(VLOOKUP(ROW($A14)&F$1,Лист2!$B$1:$E$113,4,0),\"\")","v":"частная"}]
[{"$f":"IFERROR(VLOOKUP(ROW($A15)&A$1,Лист2!$B$1:$E$113,4,0),\"\")","v":"«КРАСНАЯ НИВА» СЕЛЬСКОХОЗЯЙСТВЕННЫЙ ПРОИЗВОДСТВЕННЫЙ КООПЕРАТИВ"},{"$f":"IFERROR(VLOOKUP(ROW($A15)&B$1,Лист2!$B$1:$E$113,4,0),\"\")","v":"361103, Кабардино-Балкарская Республика, Майский р-н, стан. Котляревская, ул. Лебедевых, 73"},{"$f":"IFERROR(VLOOKUP(ROW($A15)&C$1,Лист2!$B$1:$E$113,4,0),\"\")","v":"Шульга Петр Алексеевич"},{"$f":"IFERROR(VLOOKUP(ROW($A15)&D$1,Лист2!$B$1:$E$113,4,0),\"\")","v":"(86633) 4-32-35, 4-32-32, 4-32-30"},{"$f":"IFERROR(VLOOKUP(ROW($A15)&E$1,Лист2!$B$1:$E$113,4,0),\"\")","v":"выращивание зернобобовых культур; животноводство"},{"$f":"IFERROR(VLOOKUP(ROW($A15)&F$1,Лист2!$B$1:$E$113,4,0),\"\")","v":"частная"}]
[{"$f":"IFERROR(VLOOKUP(ROW($A16)&A$1,Лист2!$B$1:$E$113,4,0),\"\")","v":"«КУБИНСКИЙ» ПЛЕМЕННОЙ ПТИЦЕЗАВОД (ОАО)"},{"$f":"IFERROR(VLOOKUP(ROW($A16)&B$1,Лист2!$B$1:$E$113,4,0),\"\")","v":"361511, Кабардино-Балкарская Республика, Баксанский р-н, с. Куба-Таба, ул. Советская, 5"},{"$f":"IFERROR(VLOOKUP(ROW($A16)&C$1,Лист2!$B$1:$E$113,4,0),\"\")","v":"Небежев Салим Корнеевич"},{"$f":"IFERROR(VLOOKUP(ROW($A16)&D$1,Лист2!$B$1:$E$113,4,0),\"\")","v":"(86634) 3-52-19, 3-52-10"},{"$f":"IFERROR(VLOOKUP(ROW($A16)&E$1,Лист2!$B$1:$E$113,4,0),\"\")","v":"выращивание зернобобовых культур"},{"$f":"IFERROR(VLOOKUP(ROW($A16)&F$1,Лист2!$B$1:$E$113,4,0),\"\")","v":"федеральная"}]
[{"$f":"IFERROR(VLOOKUP(ROW($A17)&A$1,Лист2!$B$1:$E$113,4,0),\"\")","v":""},{"$f":"IFERROR(VLOOKUP(ROW($A17)&B$1,Лист2!$B$1:$E$113,4,0),\"\")","v":""},{"$f":"IFERROR(VLOOKUP(ROW($A17)&C$1,Лист2!$B$1:$E$113,4,0),\"\")","v":""},{"$f":"IFERROR(VLOOKUP(ROW($A17)&D$1,Лист2!$B$1:$E$113,4,0),\"\")","v":""},{"$f":"IFERROR(VLOOKUP(ROW($A17)&E$1,Лист2!$B$1:$E$113,4,0),\"\")","v":""},{"$f":"IFERROR(VLOOKUP(ROW($A17)&F$1,Лист2!$B$1:$E$113,4,0),\"\")","v":""}]
[{"$f":"MATCH(2&A1,Сцеплено,0)","v":8},{"$f":"IFERROR(VLOOKUP(ROW($A18)&B$1,Лист2!$B$1:$E$113,4,0),\"\")","v":""},{"$f":"IFERROR(VLOOKUP(ROW($A18)&C$1,Лист2!$B$1:$E$113,4,0),\"\")","v":""},{"$f":"IFERROR(VLOOKUP(ROW($A18)&D$1,Лист2!$B$1:$E$113,4,0),\"\")","v":""},{"$f":"IFERROR(VLOOKUP(ROW($A18)&E$1,Лист2!$B$1:$E$113,4,0),\"\")","v":""},{"$f":"IFERROR(VLOOKUP(ROW($A18)&F$1,Лист2!$B$1:$E$113,4,0),\"\")","v":""}]
[{"$f":"IFERROR(VLOOKUP(ROW($A19)&A$1,Лист2!$B$1:$E$113,4,0),\"\")","v":""},{"$f":"IFERROR(VLOOKUP(ROW($A19)&B$1,Лист2!$B$1:$E$113,4,0),\"\")","v":""},{"$f":"IFERROR(VLOOKUP(ROW($A19)&C$1,Лист2!$B$1:$E$113,4,0),\"\")","v":""},{"$f":"IFERROR(VLOOKUP(ROW($A19)&D$1,Лист2!$B$1:$E$113,4,0),\"\")","v":""},{"$f":"IFERROR(VLOOKUP(ROW($A19)&E$1,Лист2!$B$1:$E$113,4,0),\"\")","v":""},{"$f":"IFERROR(VLOOKUP(ROW($A19)&F$1,Лист2!$B$1:$E$113,4,0),\"\")","v":""}]
[{"$f":"IFERROR(VLOOKUP(ROW($A20)&A$1,Лист2!$B$1:$E$113,4,0),\"\")","v":""},{"$f":"IFERROR(VLOOKUP(ROW($A20)&B$1,Лист2!$B$1:$E$113,4,0),\"\")","v":""},{"$f":"IFERROR(VLOOKUP(ROW($A20)&C$1,Лист2!$B$1:$E$113,4,0),\"\")","v":""},{"$f":"IFERROR(VLOOKUP(ROW($A20)&D$1,Лист2!$B$1:$E$113,4,0),\"\")","v":""},{"$f":"IFERROR(VLOOKUP(ROW($A20)&E$1,Лист2!$B$1:$E$113,4,0),\"\")","v":""},{"$f":"IFERROR(VLOOKUP(ROW($A20)&F$1,Лист2!$B$1:$E$113,4,0),\"\")","v":""}]
[{"$f":"IFERROR(VLOOKUP(ROW($A21)&A$1,Лист2!$B$1:$E$113,4,0),\"\")","v":""},{"$f":"IFERROR(VLOOKUP(ROW($A21)&B$1,Лист2!$B$1:$E$113,4,0),\"\")","v":""},{"$f":"IFERROR(VLOOKUP(ROW($A21)&C$1,Лист2!$B$1:$E$113,4,0),\"\")","v":""},{"$f":"IFERROR(VLOOKUP(ROW($A21)&D$1,Лист2!$B$1:$E$113,4,0),\"\")","v":""},{"$f":"IFERROR(VLOOKUP(ROW($A21)&E$1,Лист2!$B$1:$E$113,4,0),\"\")","v":""},{"$f":"IFERROR(VLOOKUP(ROW($A21)&F$1,Лист2!$B$1:$E$113,4,0),\"\")","v":""}]
[{"$f":"IFERROR(VLOOKUP(ROW($A22)&A$1,Лист2!$B$1:$E$113,4,0),\"\")","v":""},{"$f":"IFERROR(VLOOKUP(ROW($A22)&B$1,Лист2!$B$1:$E$113,4,0),\"\")","v":""},{"$f":"IFERROR(VLOOKUP(ROW($A22)&C$1,Лист2!$B$1:$E$113,4,0),\"\")","v":""},{"$f":"IFERROR(VLOOKUP(ROW($A22)&D$1,Лист2!$B$1:$E$113,4,0),\"\")","v":""},{"$f":"IFERROR(VLOOKUP(ROW($A22)&E$1,Лист2!$B$1:$E$113,4,0),\"\")","v":""},{"$f":"IFERROR(VLOOKUP(ROW($A22)&F$1,Лист2!$B$1:$E$113,4,0),\"\")","v":""}]

{"sheet":"Лист1(а)","index":1,"n_rows":23,"n_cols":6,"rows_kept":23,"cut":false,"hidden":false,"merged":[]}
["Название компании","Адрес","Руководитель","Телефон","Направление деятельности","Собственность"]
[{"$f":"INDEX(Лист2!$E$1:$E$113,MATCH(ROW(A1)&A$1,Сцеплено,0),1)","v":"«АРД-М» ООО"},{"$f":"INDEX(Лист2!$E$1:$E$113,MATCH(ROW(B1)&B$1,Сцеплено,0),1)","v":"361411, Кабардино-Балкарская Республика, Чегемский р-н, с. Нартан"},{"$f":"INDEX(Лист2!$E$1:$E$113,MATCH(ROW(C1)&C$1,Сцеплено,0),1)","v":"Хагабанов Сафраил Хаутиевич"},{"$f":"INDEX(Лист2!$E$1:$E$113,MATCH(ROW(D1)&D$1,Сцеплено,0),1)","v":"(86630) 4-12-95"},{"$f":"INDEX(Лист2!$E$1:$E$113,MATCH(ROW(E1)&E$1,Сцеплено,0),1)","v":"зерноводство"},{"$f":"INDEX(Лист2!$E$1:$E$113,MATCH(ROW(F1)&F$1,Сцеплено,0),1)","v":"частная"}]
[{"$f":"INDEX(Лист2!$E$1:$E$113,MATCH(ROW(A2)&A$1,Сцеплено,0),1)","v":"«БАКСАНСКИЙ» ПЛОДОПИТОМНИК"},{"$f":"INDEX(Лист2!$E$1:$E$113,MATCH(ROW(B2)&B$1,Сцеплено,0),1)","v":"361510, Кабардино-Балкарская Республика, Баксанский р-н, с. Псычох"},{"$f":"INDEX(Лист2!$E$1:$E$113,MATCH(ROW(C2)&C$1,Сцеплено,0),1)","v":"Архестов Хасан Кадырович"},{"$f":"INDEX(Лист2!$E$1:$E$113,MATCH(ROW(D2)&D$1,Сцеплено,0),1)","v":"(86634) 7-41-38, 7-41-48"},{"$f":"INDEX(Лист2!$E$1:$E$113,MATCH(ROW(E2)&E$1,Сцеплено,0),1)","v":"выращивание плодово-ягодных культур"},{"$f":"INDEX(Лист2!$E$1:$E$113,MATCH(ROW(F2)&F$1,Сцеплено,0),1)","v":"государственная"}]
[{"$f":"INDEX(Лист2!$E$1:$E$113,MATCH(ROW(A3)&A$1,Сцеплено,0),1)","v":"«БЕЛОКАМЕНСКОЕ» СЕЛЬХОЗПРЕДПРИЯТИЕ (ООО)"},{"$f":"INDEX(Лист2!$E$1:$E$113,MATCH(ROW(B3)&B$1,Сцеплено,0),1)","v":"361720, Кабардино-Балкарская Республика, Зольский р-н, с. Белокаменское, ул. Центральная, 1"},{"$f":"INDEX(Лист2!$E$1:$E$113,MATCH(ROW(C3)&C$1,Сцеплено,0),1)","v":"Шабатоков Резван Хасинович"},{"$f":"INDEX(Лист2!$E$1:$E$113,MATCH(ROW(D3)&D$1,Сцеплено,0),1)","v":"(86637) 7-57-18"},{"$f":"INDEX(Лист2!$E$1:$E$113,MATCH(ROW(E3)&E$1,Сцеплено,0),1)","v":"выращивание зернобобовых культур; животноводство молочное"},{"$f":"INDEX(Лист2!$E$1:$E$113,MATCH(ROW(F3)&F$1,Сцеплено,0),1)","v":"частная"}]
[{"$f":"INDEX(Лист2!$E$1:$E$113,MATCH(ROW(A4)&A$1,Сцеплено,0),1)","v":"«ВИНОГРАД» НАРОДНОЕ ПРЕДПРИЯТИЕ (ЗАО)"},{"$f":"INDEX(Лист2!$E$1:$E$113,MATCH(ROW(B4)&B$1,Сцеплено,0),1)","v":"361044, Кабардино-Балкарская Республика, г. Прохладный, ул. Горького, 59"},{"$f":"INDEX(Лист2!$E$1:$E$113,MATCH(ROW(C4)&C$1,Сцеплено,0),1)","v":"Тхалиджоков Сафарби Лионович"},{"$f":"INDEX(Лист2!$E$1:$E$113,MATCH(ROW(D4)&D$1,Сцеплено,0),1)","v":"(86631) 7-74-20, 7-70-50, 7-78-38"},{"$f":"INDEX(Лист2!$E$1:$E$113,MATCH(ROW(E4)&E$1,Сцеплено,0),1)","v":"виноградарство; животноводство"},{"$f":"INDEX(Лист2!$E$1:$E$113,MATCH(ROW(F4)&F$1,Сцеплено,0),1)","v":"частная"}]
[{"$f":"INDEX(Лист2!$E$1:$E$113,MATCH(ROW(A5)&A$1,Сцеплено,0),1)","v":"«ВЛАДИМИР» ПРЕДПРИЯТИЕ"},{"$f":"INDEX(Лист2!$E$1:$E$113,MATCH(ROW(B5)&B$1,Сцеплено,0),1)","v":"361405, Кабардино-Балкарская Республика, Чегемский р-н, с. Лечинкай"},{"$f":"INDEX(Лист2!$E$1:$E$113,MATCH(ROW(C5)&C$1,Сцеплено,0),1)","v":"Дышеков Атмир Исуфович"},{"$f":"INDEX(Лист2!$E$1:$E$113,MATCH(ROW(D5)&D$1,Сцеплено,0),1)","v":"(909) 491-21-02"},{"$f":"INDEX(Лист2!$E$1:$E$113,MATCH(ROW(E5)&E$1,Сцеплено,0),1)","v":"животноводство"},{"$f":"INDEX(Лист2!$E$1:$E$113,MATCH(ROW(F5)&F$1,Сцеплено,0),1)","v":"частная"}]
[{"$f":"INDEX(Лист2!$E$1:$E$113,MATCH(ROW(A6)&A$1,Сцеплено,0),1)","v":"«ВОСХОД» ООО"},{"$f":"INDEX(Лист2!$E$1:$E$113,MATCH(ROW(B6)&B$1,Сцеплено,0),1)","v":"361011, Кабардино-Балкарская Республика, Прохладненский р-н, с. Пролетарское"},{"$f":"INDEX(Лист2!$E$1:$E$113,MATCH(ROW(C6)&C$1,Сцеплено,0),1)","v":"Кехер Олег Аликберович"},{"$f":"INDEX(Лист2!$E$1:$E$113,MATCH(ROW(D6)&D$1,Сцеплено,0),1)","v":"(86631) 6-30-00"},{"$f":"INDEX(Лист2!$E$1:$E$113,MATCH(ROW(E6)&E$1,Сцеплено,0),1)","v":"животноводство; растениеводство"},{"$f":"INDEX(Лист2!$E$1:$E$113,MATCH(ROW(F6)&F$1,Сцеплено,0),1)","v":"частная"}]
[{"$f":"INDEX(Лист2!$E$1:$E$113,MATCH(ROW(A7)&A$1,Сцеплено,0),1)","v":"«ДАЛЬНИЙ» СП. АДМИНИСТРАЦИЯ РАЙОНА"},{"$f":"INDEX(Лист2!$E$1:$E$113,MATCH(ROW(B7)&B$1,Сцеплено,0),1)","v":"361013, Кабардино-Балкарская Республика, Прохладненский р-н, с. Дальнее"},{"$f":"INDEX(Лист2!$E$1:$E$113,MATCH(ROW(C7)&C$1,Сцеплено,0),1)","v":{"$error":"#N/A"}},{"$f":"INDEX(Лист2!$E$1:$E$113,MATCH(ROW(D7)&D$1,Сцеплено,0),1)","v":"(86631) 9-43-23"},{"$f":"INDEX(Лист2!$E$1:$E$113,MATCH(ROW(E7)&E$1,Сцеплено,0),1)","v":"животноводство; растениеводство"},{"$f":"INDEX(Лист2!$E$1:$E$113,MATCH(ROW(F7)&F$1,Сцеплено,0),1)","v":"государственная"}]
[{"$f":"INDEX(Лист2!$E$1:$E$113,MATCH(ROW(A8)&A$1,Сцеплено,0),1)","v":"ЗАО ИМЕНИ БАЙСУЛТАНОВА"},{"$f":"INDEX(Лист2!$E$1:$E$113,MATCH(ROW(B8)&B$1,Сцеплено,0),1)","v":"361424, Кабардино-Балкарская Республика, Чегемский р-н, с. Яникой, ул. Мечиева, 84"},{"$f":"INDEX(Лист2!$E$1:$E$113,MATCH(ROW(C8)&C$1,Сцеплено,0),1)","v":"Гелястанов Мухтар Ахматович"},{"$f":"INDEX(Лист2!$E$1:$E$113,MATCH(ROW(D8)&D$1,Сцеплено,0),1)","v":"(86630) 7-82-48; (928) 700-11-50"},{"$f":"INDEX(Лист2!$E$1:$E$113,MATCH(ROW(E8)&E$1,Сцеплено,0),1)","v":"животноводство молочное"},{"$f":"INDEX(Лист2!$E$1:$E$113,MATCH(ROW(F8)&F$1,Сцеплено,0),1)","v":"акционерная"}]
[{"$f":"INDEX(Лист2!$E$1:$E$113,MATCH(ROW(A9)&A$1,Сцеплено,0),1)","v":"ЗАО ИМЕНИ КАЛАБЕКОВА"},{"$f":"INDEX(Лист2!$E$1:$E$113,MATCH(ROW(B9)&B$1,Сцеплено,0),1)","v":"361416, Кабардино-Балкарская Республика, Чегемский р-н, с. Булунгу, ул. Кулиева, 45"},{"$f":"INDEX(Лист2!$E$1:$E$113,MATCH(ROW(C9)&C$1,Сцеплено,0),1)","v":"Кулиев Зафир Магомедович"},{"$f":"INDEX(Лист2!$E$1:$E$113,MATCH(ROW(D9)&D$1,Сцеплено,0),1)","v":"(86630) 9-43-44, 7-97-46"},{"$f":"INDEX(Лист2!$E$1:$E$113,MATCH(ROW(E9)&E$1,Сцеплено,0),1)","v":"животноводство"},{"$f":"INDEX(Лист2!$E$1:$E$113,MATCH(ROW(F9)&F$1,Сцеплено,0),1)","v":"акционерная"}]
[{"$f":"INDEX(Лист2!$E$1:$E$113,MATCH(ROW(A10)&A$1,Сцеплено,0),1)","v":"«ЗАРЯ» ООО"},{"$f":"INDEX(Лист2!$E$1:$E$113,MATCH(ROW(B10)&B$1,Сцеплено,0),1)","v":"361013, Кабардино-Балкарская Республика, Прохладненский р-н, с. Дальнее"},{"$f":"INDEX(Лист2!$E$1:$E$113,MATCH(ROW(C10)&C$1,Сцеплено,0),1)","v":"Асманов К.М."},{"$f":"INDEX(Лист2!$E$1:$E$113,MATCH(ROW(D10)&D$1,Сцеплено,0),1)","v":"(86631) 7-01-53"},{"$f":"INDEX(Лист2!$E$1:$E$113,MATCH(ROW(E10)&E$1,Сцеплено,0),1)","v":"животноводство; растениеводство"},{"$f":"INDEX(Лист2!$E$1:$E$113,MATCH(ROW(F10)&F$1,Сцеплено,0),1)","v":"частная"}]
[{"$f":"INDEX(Лист2!$E$1:$E$113,MATCH(ROW(A11)&A$1,Сцеплено,0),1)","v":"«КАМЫШОВАЯ БАЛКА» СЕЛЬХОЗПРЕДПРИЯТИЕ (ООО)"},{"$f":"INDEX(Лист2!$E$1:$E$113,MATCH(ROW(B11)&B$1,Сцеплено,0),1)","v":"361715, Кабардино-Балкарская Республика, Зольский р-н, с. Камлюково, ул. Калмыкова, 54"},{"$f":"INDEX(Лист2!$E$1:$E$113,MATCH(ROW(C11)&C$1,Сцеплено,0),1)","v":"Канихов Ахмет Наурбиевич"},{"$f":"INDEX(Лист2!$E$1:$E$113,MATCH(ROW(D11)&D$1,Сцеплено,0),1)","v":"(86637) 7-33-30"},{"$f":"INDEX(Лист2!$E$1:$E$113,MATCH(ROW(E11)&E$1,Сцеплено,0),1)","v":"растениеводство"},{"$f":"INDEX(Лист2!$E$1:$E$113,MATCH(ROW(F11)&F$1,Сцеплено,0),1)","v":"частная"}]
[{"$f":"INDEX(Лист2!$E$1:$E$113,MATCH(ROW(A12)&A$1,Сцеплено,0),1)","v":"«КАСАЕВО» СЕЛЬСКОХОЗЯЙСТВЕННЫЙ ПРОИЗВОДСТВЕННЫЙ КООПЕРАТИВ"},{"$f":"INDEX(Лист2!$E$1:$E$113,MATCH(ROW(B12)&B$1,Сцеплено,0),1)","v":"361503, Кабардино-Балкарская Республика, Баксанский р-н, с. Баксаненок, ул. Березгова, 120"},{"$f":"INDEX(Лист2!$E$1:$E$113,MATCH(ROW(C12)&C$1,Сцеплено,0),1)","v":"Кимахов Гумарби Ксниублевич"},{"$f":"INDEX(Лист2!$E$1:$E$113,MATCH(ROW(D12)&D$1,Сцеплено,0),1)","v":"(86634) 3-61-79; (926) 690-61-65"},{"$f":"INDEX(Лист2!$E$1:$E$113,MATCH(ROW(E12)&E$1,Сцеплено,0),1)","v":"выращивание зернобобовых культур"},{"$f":"INDEX(Лист2!$E$1:$E$113,MATCH(ROW(F12)&F$1,Сцеплено,0),1)","v":"частная"}]
[{"$f":"INDEX(Лист2!$E$1:$E$113,MATCH(ROW(A13)&A$1,Сцеплено,0),1)","v":"КОЛХОЗ ИМЕНИ ПЕТРОВЫХ"},{"$f":"INDEX(Лист2!$E$1:$E$113,MATCH(ROW(B13)&B$1,Сцеплено,0),1)","v":"361015, Кабардино-Балкарская Республика, Прохладненский р-н, стан. Ека-териноградская, ул. Ленина, 3"},{"$f":"INDEX(Лист2!$E$1:$E$113,MATCH(ROW(C13)&C$1,Сцеплено,0),1)","v":"Говоров Сергей Анатольевич"},{"$f":"INDEX(Лист2!$E$1:$E$113,MATCH(ROW(D13)&D$1,Сцеплено,0),1)","v":"(86631) 7-81-60, 7-85-65"},{"$f":"INDEX(Лист2!$E$1:$E$113,MATCH(ROW(E13)&E$1,Сцеплено,0),1)","v":"зерноводство"},{"$f":"INDEX(Лист2!$E$1:$E$113,MATCH(ROW(F13)&F$1,Сцеплено,0),1)","v":"коллективная"}]
[{"$f":"INDEX(Лист2!$E$1:$E$113,MATCH(ROW(A14)&A$1,Сцеплено,0),1)","v":"«КОНСТАНТИНОВСКОЕ» СЕЛЬХОЗПРЕДПРИЯТИЕ (ООО)"},{"$f":"INDEX(Лист2!$E$1:$E$113,MATCH(ROW(B14)&B$1,Сцеплено,0),1)","v":"361504, Кабардино-Балкарская Республика, Баксанский р-н, с. Кременчуг-Константиновское, ул. Садовая,"},{"$f":"INDEX(Лист2!$E$1:$E$113,MATCH(ROW(C14)&C$1,Сцеплено,0),1)","v":"Лобко Александр Викторович"},{"$f":"INDEX(Лист2!$E$1:$E$113,MATCH(ROW(D14)&D$1,Сцеплено,0),1)","v":"(906) 483-66-06"},{"$f":"INDEX(Лист2!$E$1:$E$113,MATCH(ROW(E14)&E$1,Сцеплено,0),1)","v":"выращивание зернобобовых культур"},{"$f":"INDEX(Лист2!$E$1:$E$113,MATCH(ROW(F14)&F$1,Сцеплено,0),1)","v":"частная"}]
[{"$f":"INDEX(Лист2!$E$1:$E$113,MATCH(ROW(A15)&A$1,Сцеплено,0),1)","v":"«КРАСНАЯ НИВА» СЕЛЬСКОХОЗЯЙСТВЕННЫЙ ПРОИЗВОДСТВЕННЫЙ КООПЕРАТИВ"},{"$f":"INDEX(Лист2!$E$1:$E$113,MATCH(ROW(B15)&B$1,Сцеплено,0),1)","v":"361103, Кабардино-Балкарская Республика, Майский р-н, стан. Котляревская, ул. Лебедевых, 73"},{"$f":"INDEX(Лист2!$E$1:$E$113,MATCH(ROW(C15)&C$1,Сцеплено,0),1)","v":"Шульга Петр Алексеевич"},{"$f":"INDEX(Лист2!$E$1:$E$113,MATCH(ROW(D15)&D$1,Сцеплено,0),1)","v":"(86633) 4-32-35, 4-32-32, 4-32-30"},{"$f":"INDEX(Лист2!$E$1:$E$113,MATCH(ROW(E15)&E$1,Сцеплено,0),1)","v":"выращивание зернобобовых культур; животноводство"},{"$f":"INDEX(Лист2!$E$1:$E$113,MATCH(ROW(F15)&F$1,Сцеплено,0),1)","v":"частная"}]
[{"$f":"INDEX(Лист2!$E$1:$E$113,MATCH(ROW(A16)&A$1,Сцеплено,0),1)","v":"«КУБИНСКИЙ» ПЛЕМЕННОЙ ПТИЦЕЗАВОД (ОАО)"},{"$f":"INDEX(Лист2!$E$1:$E$113,MATCH(ROW(B16)&B$1,Сцеплено,0),1)","v":"361511, Кабардино-Балкарская Республика, Баксанский р-н, с. Куба-Таба, ул. Советская, 5"},{"$f":"INDEX(Лист2!$E$1:$E$113,MATCH(ROW(C16)&C$1,Сцеплено,0),1)","v":"Небежев Салим Корнеевич"},{"$f":"INDEX(Лист2!$E$1:$E$113,MATCH(ROW(D16)&D$1,Сцеплено,0),1)","v":"(86634) 3-52-19, 3-52-10"},{"$f":"INDEX(Лист2!$E$1:$E$113,MATCH(ROW(E16)&E$1,Сцеплено,0),1)","v":"выращивание зернобобовых культур"},{"$f":"INDEX(Лист2!$E$1:$E$113,MATCH(ROW(F16)&F$1,Сцеплено,0),1)","v":"федеральная"}]
[{"$f":"INDEX(Лист2!$E$1:$E$113,MATCH(ROW(A17)&A$1,Сцеплено,0),1)","v":{"$error":"#N/A"}},{"$f":"INDEX(Лист2!$E$1:$E$113,MATCH(ROW(B17)&B$1,Сцеплено,0),1)","v":{"$error":"#N/A"}},{"$f":"INDEX(Лист2!$E$1:$E$113,MATCH(ROW(C17)&C$1,Сцеплено,0),1)","v":{"$error":"#N/A"}},{"$f":"INDEX(Лист2!$E$1:$E$113,MATCH(ROW(D17)&D$1,Сцеплено,0),1)","v":{"$error":"#N/A"}},{"$f":"INDEX(Лист2!$E$1:$E$113,MATCH(ROW(E17)&E$1,Сцеплено,0),1)","v":{"$error":"#N/A"}},{"$f":"INDEX(Лист2!$E$1:$E$113,MATCH(ROW(F17)&F$1,Сцеплено,0),1)","v":{"$error":"#N/A"}}]
[{"$f":"INDEX(Лист2!$E$1:$E$113,MATCH(ROW(A18)&A$1,Сцеплено,0),1)","v":{"$error":"#N/A"}},{"$f":"INDEX(Лист2!$E$1:$E$113,MATCH(ROW(B18)&B$1,Сцеплено,0),1)","v":{"$error":"#N/A"}},{"$f":"INDEX(Лист2!$E$1:$E$113,MATCH(ROW(C18)&C$1,Сцеплено,0),1)","v":{"$error":"#N/A"}},{"$f":"INDEX(Лист2!$E$1:$E$113,MATCH(ROW(D18)&D$1,Сцеплено,0),1)","v":{"$error":"#N/A"}},{"$f":"INDEX(Лист2!$E$1:$E$113,MATCH(ROW(E18)&E$1,Сцеплено,0),1)","v":{"$error":"#N/A"}},{"$f":"INDEX(Лист2!$E$1:$E$113,MATCH(ROW(F18)&F$1,Сцеплено,0),1)","v":{"$error":"#N/A"}}]
[{"$f":"INDEX(Лист2!$E$1:$E$113,MATCH(ROW(A19)&A$1,Сцеплено,0),1)","v":{"$error":"#N/A"}},{"$f":"INDEX(Лист2!$E$1:$E$113,MATCH(ROW(B19)&B$1,Сцеплено,0),1)","v":{"$error":"#N/A"}},{"$f":"INDEX(Лист2!$E$1:$E$113,MATCH(ROW(C19)&C$1,Сцеплено,0),1)","v":{"$error":"#N/A"}},{"$f":"INDEX(Лист2!$E$1:$E$113,MATCH(ROW(D19)&D$1,Сцеплено,0),1)","v":{"$error":"#N/A"}},{"$f":"INDEX(Лист2!$E$1:$E$113,MATCH(ROW(E19)&E$1,Сцеплено,0),1)","v":{"$error":"#N/A"}},{"$f":"INDEX(Лист2!$E$1:$E$113,MATCH(ROW(F19)&F$1,Сцеплено,0),1)","v":{"$error":"#N/A"}}]
[{"$f":"INDEX(Лист2!$E$1:$E$113,MATCH(ROW(A20)&A$1,Сцеплено,0),1)","v":{"$error":"#N/A"}},{"$f":"INDEX(Лист2!$E$1:$E$113,MATCH(ROW(B20)&B$1,Сцеплено,0),1)","v":{"$error":"#N/A"}},{"$f":"INDEX(Лист2!$E$1:$E$113,MATCH(ROW(C20)&C$1,Сцеплено,0),1)","v":{"$error":"#N/A"}},{"$f":"INDEX(Лист2!$E$1:$E$113,MATCH(ROW(D20)&D$1,Сцеплено,0),1)","v":{"$error":"#N/A"}},{"$f":"INDEX(Лист2!$E$1:$E$113,MATCH(ROW(E20)&E$1,Сцеплено,0),1)","v":{"$error":"#N/A"}},{"$f":"INDEX(Лист2!$E$1:$E$113,MATCH(ROW(F20)&F$1,Сцеплено,0),1)","v":{"$error":"#N/A"}}]
[{"$f":"INDEX(Лист2!$E$1:$E$113,MATCH(ROW(A21)&A$1,Сцеплено,0),1)","v":{"$error":"#N/A"}},{"$f":"INDEX(Лист2!$E$1:$E$113,MATCH(ROW(B21)&B$1,Сцеплено,0),1)","v":{"$error":"#N/A"}},{"$f":"INDEX(Лист2!$E$1:$E$113,MATCH(ROW(C21)&C$1,Сцеплено,0),1)","v":{"$error":"#N/A"}},{"$f":"INDEX(Лист2!$E$1:$E$113,MATCH(ROW(D21)&D$1,Сцеплено,0),1)","v":{"$error":"#N/A"}},{"$f":"INDEX(Лист2!$E$1:$E$113,MATCH(ROW(E21)&E$1,Сцеплено,0),1)","v":{"$error":"#N/A"}},{"$f":"INDEX(Лист2!$E$1:$E$113,MATCH(ROW(F21)&F$1,Сцеплено,0),1)","v":{"$error":"#N/A"}}]
[{"$f":"INDEX(Лист2!$E$1:$E$113,MATCH(ROW(A22)&A$1,Сцеплено,0),1)","v":{"$error":"#N/A"}},{"$f":"INDEX(Лист2!$E$1:$E$113,MATCH(ROW(B22)&B$1,Сцеплено,0),1)","v":{"$error":"#N/A"}},{"$f":"INDEX(Лист2!$E$1:$E$113,MATCH(ROW(C22)&C$1,Сцеплено,0),1)","v":{"$error":"#N/A"}},{"$f":"INDEX(Лист2!$E$1:$E$113,MATCH(ROW(D22)&D$1,Сцеплено,0),1)","v":{"$error":"#N/A"}},{"$f":"INDEX(Лист2!$E$1:$E$113,MATCH(ROW(E22)&E$1,Сцеплено,0),1)","v":{"$error":"#N/A"}},{"$f":"INDEX(Лист2!$E$1:$E$113,MATCH(ROW(F22)&F$1,Сцеплено,0),1)","v":{"$error":"#N/A"}}]

{"sheet":"Лист2","index":2,"n_rows":113,"n_cols":5,"rows_kept":113,"cut":false,"hidden":false,"merged":[]}
["«АРД-М» ООО",{"$f":"C1&D1","v":"1Название компании"},{"$f":"COUNTIF($D$1:D1,\"\")+1","v":1},{"$f":"IF(ISBLANK($A1),\"\",IFERROR(MID($A1,1,SEARCH(\":\",$A1)-1),\"Название компании\"))","v":"Название компании"},{"$f":"IFERROR(MID($A1,SEARCH(\":\",$A1)+2,100),$A1)","v":"«АРД-М» ООО"}]
["Адрес: 361411, Кабардино-Балкарская Республика, Чегемский р-н, с. Нартан",{"$f":"C2&D2","v":"1Адрес"},{"$f":"COUNTIF($D$1:D2,\"\")+1","v":1},{"$f":"IF(ISBLANK($A2),\"\",IFERROR(MID($A2,1,SEARCH(\":\",$A2)-1),\"Название компании\"))","v":"Адрес"},{"$f":"IFERROR(MID($A2,SEARCH(\":\",$A2)+2,100),$A2)","v":"361411, Кабардино-Балкарская Республика, Чегемский р-н, с. Нартан"}]
["Руководитель: Хагабанов Сафраил Хаутиевич","1Руководитель",{"$f":"COUNTIF($D$1:D3,\"\")+1","v":1},"Руководитель","Хагабанов Сафраил Хаутиевич"]
["Телефон: (86630) 4-12-95","1Телефон",{"$f":"COUNTIF($D$1:D4,\"\")+1","v":1},"Телефон","(86630) 4-12-95"]
["Направление деятельности: зерноводство","1Направление деятельности",{"$f":"COUNTIF($D$1:D5,\"\")+1","v":1},"Направление деятельности","зерноводство"]
["Собственность: частная","1Собственность",{"$f":"COUNTIF($D$1:D6,\"\")+1","v":1},"Собственность","частная"]
[null,"2",{"$f":"COUNTIF($D$1:D7,\"\")+1","v":2},"",0]
["«БАКСАНСКИЙ» ПЛОДОПИТОМНИК","2Название компании",{"$f":"COUNTIF($D$1:D8,\"\")+1","v":2},"Название компании","«БАКСАНСКИЙ» ПЛОДОПИТОМНИК"]
["Адрес: 361510, Кабардино-Балкарская Республика, Баксанский р-н, с. Псычох","2Адрес",{"$f":"COUNTIF($D$1:D9,\"\")+1","v":2},"Адрес","361510, Кабардино-Балкарская Республика, Баксанский р-н, с. Псычох"]
["Руководитель: Архестов Хасан Кадырович","2Руководитель",{"$f":"COUNTIF($D$1:D10,\"\")+1","v":2},"Руководитель","Архестов Хасан Кадырович"]
["Телефон: (86634) 7-41-38, 7-41-48","2Телефон",{"$f":"COUNTIF($D$1:D11,\"\")+1","v":2},"Телефон","(86634) 7-41-38, 7-41-48"]
["Направление деятельности: выращивание плодово-ягодных культур","2Направление деятельности",{"$f":"COUNTIF($D$1:D12,\"\")+1","v":2},"Направление деятельности","выращивание плодово-ягодных культур"]
["Собственность: государственная","2Собственность",{"$f":"COUNTIF($D$1:D13,\"\")+1","v":2},"Собственность","государственная"]
[null,"3",{"$f":"COUNTIF($D$1:D14,\"\")+1","v":3},"",0]
["«БЕЛОКАМЕНСКОЕ» СЕЛЬХОЗПРЕДПРИЯТИЕ (ООО)","3Название компании",{"$f":"COUNTIF($D$1:D15,\"\")+1","v":3},"Название компании","«БЕЛОКАМЕНСКОЕ» СЕЛЬХОЗПРЕДПРИЯТИЕ (ООО)"]
["Адрес: 361720, Кабардино-Балкарская Республика, Зольский р-н, с. Белокаменское, ул. Центральная, 1","3Адрес",{"$f":"COUNTIF($D$1:D16,\"\")+1","v":3},"Адрес","361720, Кабардино-Балкарская Республика, Зольский р-н, с. Белокаменское, ул. Центральная, 1"]
["Руководитель: Шабатоков Резван Хасинович","3Руководитель",{"$f":"COUNTIF($D$1:D17,\"\")+1","v":3},"Руководитель","Шабатоков Резван Хасинович"]
["Телефон: (86637) 7-57-18","3Телефон",{"$f":"COUNTIF($D$1:D18,\"\")+1","v":3},"Телефон","(86637) 7-57-18"]
["Направление деятельности: выращивание зернобобовых культур; животноводство молочное","3Направление деятельности",{"$f":"COUNTIF($D$1:D19,\"\")+1","v":3},"Направление деятельности","выращивание зернобобовых культур; животноводство молочное"]
["Собственность: частная","3Собственность",{"$f":"COUNTIF($D$1:D20,\"\")+1","v":3},"Собственность","частная"]
[null,"4",{"$f":"COUNTIF($D$1:D21,\"\")+1","v":4},"",0]
["«ВИНОГРАД» НАРОДНОЕ ПРЕДПРИЯТИЕ (ЗАО)","4Название компании",{"$f":"COUNTIF($D$1:D22,\"\")+1","v":4},"Название компании","«ВИНОГРАД» НАРОДНОЕ ПРЕДПРИЯТИЕ (ЗАО)"]
["Адрес: 361044, Кабардино-Балкарская Республика, г. Прохладный, ул. Горького, 59","4Адрес",{"$f":"COUNTIF($D$1:D23,\"\")+1","v":4},"Адрес","361044, Кабардино-Балкарская Республика, г. Прохладный, ул. Горького, 59"]
["Руководитель: Тхалиджоков Сафарби Лионович","4Руководитель",{"$f":"COUNTIF($D$1:D24,\"\")+1","v":4},"Руководитель","Тхалиджоков Сафарби Лионович"]
["Телефон: (86631) 7-74-20, 7-70-50, 7-78-38","4Телефон",{"$f":"COUNTIF($D$1:D25,\"\")+1","v":4},"Телефон","(86631) 7-74-20, 7-70-50, 7-78-38"]
["Факс: (86631)7-71-50","4Факс",{"$f":"COUNTIF($D$1:D26,\"\")+1","v":4},"Факс","(86631)7-71-50"]
["Направление деятельности: виноградарство; животноводство","4Направление деятельности",{"$f":"COUNTIF($D$1:D27,\"\")+1","v":4},"Направление деятельности","виноградарство; животноводство"]
["Собственность: частная","4Собственность",{"$f":"COUNTIF($D$1:D28,\"\")+1","v":4},"Собственность","частная"]
[null,"5",{"$f":"COUNTIF($D$1:D29,\"\")+1","v":5},"",0]
["«ВЛАДИМИР» ПРЕДПРИЯТИЕ","5Название компании",{"$f":"COUNTIF($D$1:D30,\"\")+1","v":5},"Название компании","«ВЛАДИМИР» ПРЕДПРИЯТИЕ"]
["Адрес: 361405, Кабардино-Балкарская Республика, Чегемский р-н, с. Лечинкай","5Адрес",{"$f":"COUNTIF($D$1:D31,\"\")+1","v":5},"Адрес","361405, Кабардино-Балкарская Республика, Чегемский р-н, с. Лечинкай"]
["Руководитель: Дышеков Атмир Исуфович","5Руководитель",{"$f":"COUNTIF($D$1:D32,\"\")+1","v":5},"Руководитель","Дышеков Атмир Исуфович"]
["Телефон: (909) 491-21-02","5Телефон",{"$f":"COUNTIF($D$1:D33,\"\")+1","v":5},"Телефон","(909) 491-21-02"]
["Направление деятельности: животноводство","5Направление деятельности",{"$f":"COUNTIF($D$1:D34,\"\")+1","v":5},"Направление деятельности","животноводство"]
["Собственность: частная","5Собственность",{"$f":"COUNTIF($D$1:D35,\"\")+1","v":5},"Собственность","частная"]
[null,"6",{"$f":"COUNTIF($D$1:D36,\"\")+1","v":6},"",0]
["«ВОСХОД» ООО","6Название компании",{"$f":"COUNTIF($D$1:D37,\"\")+1","v":6},"Название компании","«ВОСХОД» ООО"]
["Адрес: 361011, Кабардино-Балкарская Республика, Прохладненский р-н, с. Пролетарское","6Адрес",{"$f":"COUNTIF($D$1:D38,\"\")+1","v":6},"Адрес","361011, Кабардино-Балкарская Республика, Прохладненский р-н, с. Пролетарское"]
["Руководитель: Кехер Олег Аликберович","6Руководитель",{"$f":"COUNTIF($D$1:D39,\"\")+1","v":6},"Руководитель","Кехер Олег Аликберович"]
["Телефон: (86631) 6-30-00","6Телефон",{"$f":"COUNTIF($D$1:D40,\"\")+1","v":6},"Телефон","(86631) 6-30-00"]
["Направление деятельности: животноводство; растениеводство","6Направление деятельности",{"$f":"COUNTIF($D$1:D41,\"\")+1","v":6},"Направление деятельности","животноводство; растениеводство"]
["Собственность: частная","6Собственность",{"$f":"COUNTIF($D$1:D42,\"\")+1","v":6},"Собственность","частная"]
[null,"7",{"$f":"COUNTIF($D$1:D43,\"\")+1","v":7},"",0]
["«ДАЛЬНИЙ» СП. АДМИНИСТРАЦИЯ РАЙОНА","7Название компании",{"$f":"COUNTIF($D$1:D44,\"\")+1","v":7},"Название компании","«ДАЛЬНИЙ» СП. АДМИНИСТРАЦИЯ РАЙОНА"]
["Адрес: 361013, Кабардино-Балкарская Республика, Прохладненский р-н, с. Дальнее","7Адрес",{"$f":"COUNTIF($D$1:D45,\"\")+1","v":7},"Адрес","361013, Кабардино-Балкарская Республика, Прохладненский р-н, с. Дальнее"]
["Телефон: (86631) 9-43-23","7Телефон",{"$f":"COUNTIF($D$1:D46,\"\")+1","v":7},"Телефон","(86631) 9-43-23"]
["Направление деятельности: животноводство; растениеводство","7Направление деятельности",{"$f":"COUNTIF($D$1:D47,\"\")+1","v":7},"Направление деятельности","животноводство; растениеводство"]
["Собственность: государственная","7Собственность",{"$f":"COUNTIF($D$1:D48,\"\")+1","v":7},"Собственность","государственная"]
[null,"8",{"$f":"COUNTIF($D$1:D49,\"\")+1","v":8},"",0]
["ЗАО ИМЕНИ БАЙСУЛТАНОВА","8Название компании",{"$f":"COUNTIF($D$1:D50,\"\")+1","v":8},"Название компании","ЗАО ИМЕНИ БАЙСУЛТАНОВА"]
["Адрес: 361424, Кабардино-Балкарская Республика, Чегемский р-н, с. Яникой, ул. Мечиева, 84","8Адрес",{"$f":"COUNTIF($D$1:D51,\"\")+1","v":8},"Адрес","361424, Кабардино-Балкарская Республика, Чегемский р-н, с. Яникой, ул. Мечиева, 84"]
["Руководитель: Гелястанов Мухтар Ахматович","8Руководитель",{"$f":"COUNTIF($D$1:D52,\"\")+1","v":8},"Руководитель","Гелястанов Мухтар Ахматович"]
["Телефон: (86630) 7-82-48; (928) 700-11-50","8Телефон",{"$f":"COUNTIF($D$1:D53,\"\")+1","v":8},"Телефон","(86630) 7-82-48; (928) 700-11-50"]
["Направление деятельности: животноводство молочное","8Направление деятельности",{"$f":"COUNTIF($D$1:D54,\"\")+1","v":8},"Направление деятельности","животноводство молочное"]
["Собственность: акционерная","8Собственность",{"$f":"COUNTIF($D$1:D55,\"\")+1","v":8},"Собственность","акционерная"]
[null,"9",{"$f":"COUNTIF($D$1:D56,\"\")+1","v":9},"",0]
["ЗАО ИМЕНИ КАЛАБЕКОВА","9Название компании",{"$f":"COUNTIF($D$1:D57,\"\")+1","v":9},"Название компании","ЗАО ИМЕНИ КАЛАБЕКОВА"]
["Адрес: 361416, Кабардино-Балкарская Республика, Чегемский р-н, с. Булунгу, ул. Кулиева, 45","9Адрес",{"$f":"COUNTIF($D$1:D58,\"\")+1","v":9},"Адрес","361416, Кабардино-Балкарская Республика, Чегемский р-н, с. Булунгу, ул. Кулиева, 45"]
["Руководитель: Кулиев Зафир Магомедович","9Руководитель",{"$f":"COUNTIF($D$1:D59,\"\")+1","v":9},"Руководитель","Кулиев Зафир Магомедович"]
["Телефон: (86630) 9-43-44, 7-97-46","9Телефон",{"$f":"COUNTIF($D$1:D60,\"\")+1","v":9},"Телефон","(86630) 9-43-44, 7-97-46"]
["Направление деятельности: животноводство","9Направление деятельности",{"$f":"COUNTIF($D$1:D61,\"\")+1","v":9},"Направление деятельности","животноводство"]
["Собственность: акционерная","9Собственность",{"$f":"COUNTIF($D$1:D62,\"\")+1","v":9},"Собственность","акционерная"]
[null,"10",{"$f":"COUNTIF($D$1:D63,\"\")+1","v":10},"",0]
["«ЗАРЯ» ООО","10Название компании",{"$f":"COUNTIF($D$1:D64,\"\")+1","v":10},"Название компании","«ЗАРЯ» ООО"]
["Адрес: 361013, Кабардино-Балкарская Республика, Прохладненский р-н, с. Дальнее","10Адрес",{"$f":"COUNTIF($D$1:D65,\"\")+1","v":10},"Адрес","361013, Кабардино-Балкарская Республика, Прохладненский р-н, с. Дальнее"]
["Руководитель: Асманов К.М.",{"$f":"C66&D66","v":"10Руководитель"},{"$f":"COUNTIF($D$1:D66,\"\")+1","v":10},{"$f":"IF(ISBLANK($A66),\"\",IFERROR(MID($A66,1,SEARCH(\":\",$A66)-1),\"Название компании\"))","v":"Руководитель"},{"$f":"IFERROR(MID($A66,SEARCH(\":\",$A66)+2,100),$A66)","v":"Асманов К.М."}]
["Телефон: (86631) 7-01-53","10Телефон",{"$f":"COUNTIF($D$1:D67,\"\")+1","v":10},"Телефон","(86631) 7-01-53"]
["Факс: (86631) 7-01-53","10Факс",{"$f":"COUNTIF($D$1:D68,\"\")+1","v":10},"Факс","(86631) 7-01-53"]
["Направление деятельности: животноводство; растениеводство","10Направление деятельности",{"$f":"COUNTIF($D$1:D69,\"\")+1","v":10},"Направление деятельности","животноводство; растениеводство"]
["Собственность: частная","10Собственность",{"$f":"COUNTIF($D$1:D70,\"\")+1","v":10},"Собственность","частная"]
[null,"11",{"$f":"COUNTIF($D$1:D71,\"\")+1","v":11},"",0]
["«КАМЫШОВАЯ БАЛКА» СЕЛЬХОЗПРЕДПРИЯТИЕ (ООО)","11Название компании",{"$f":"COUNTIF($D$1:D72,\"\")+1","v":11},"Название компании","«КАМЫШОВАЯ БАЛКА» СЕЛЬХОЗПРЕДПРИЯТИЕ (ООО)"]
["Адрес: 361715, Кабардино-Балкарская Республика, Зольский р-н, с. Камлюково, ул. Калмыкова, 54","11Адрес",{"$f":"COUNTIF($D$1:D73,\"\")+1","v":11},"Адрес","361715, Кабардино-Балкарская Республика, Зольский р-н, с. Камлюково, ул. Калмыкова, 54"]
["Руководитель: Канихов Ахмет Наурбиевич","11Руководитель",{"$f":"COUNTIF($D$1:D74,\"\")+1","v":11},"Руководитель","Канихов Ахмет Наурбиевич"]
["Телефон: (86637) 7-33-30","11Телефон",{"$f":"COUNTIF($D$1:D75,\"\")+1","v":11},"Телефон","(86637) 7-33-30"]
["Направление деятельности: растениеводство","11Направление деятельности",{"$f":"COUNTIF($D$1:D76,\"\")+1","v":11},"Направление деятельности","растениеводство"]
["Собственность: частная","11Собственность",{"$f":"COUNTIF($D$1:D77,\"\")+1","v":11},"Собственность","частная"]
[null,"12",{"$f":"COUNTIF($D$1:D78,\"\")+1","v":12},"",0]
["«КАСАЕВО» СЕЛЬСКОХОЗЯЙСТВЕННЫЙ ПРОИЗВОДСТВЕННЫЙ КООПЕРАТИВ","12Название компании",{"$f":"COUNTIF($D$1:D79,\"\")+1","v":12},"Название компании","«КАСАЕВО» СЕЛЬСКОХОЗЯЙСТВЕННЫЙ ПРОИЗВОДСТВЕННЫЙ КООПЕРАТИВ"]
["Адрес: 361503, Кабардино-Балкарская Республика, Баксанский р-н, с. Баксаненок, ул. Березгова, 120","12Адрес",{"$f":"COUNTIF($D$1:D80,\"\")+1","v":12},"Адрес","361503, Кабардино-Балкарская Республика, Баксанский р-н, с. Баксаненок, ул. Березгова, 120"]
["Руководитель: Кимахов Гумарби Ксниублевич","12Руководитель",{"$f":"COUNTIF($D$1:D81,\"\")+1","v":12},"Руководитель","Кимахов Гумарби Ксниублевич"]
["Телефон: (86634) 3-61-79; (926) 690-61-65","12Телефон",{"$f":"COUNTIF($D$1:D82,\"\")+1","v":12},"Телефон","(86634) 3-61-79; (926) 690-61-65"]
["Направление деятельности: выращивание зернобобовых культур","12Направление деятельности",{"$f":"COUNTIF($D$1:D83,\"\")+1","v":12},"Направление деятельности","выращивание зернобобовых культур"]
["Собственность: частная","12Собственность",{"$f":"COUNTIF($D$1:D84,\"\")+1","v":12},"Собственность","частная"]
[null,"13",{"$f":"COUNTIF($D$1:D85,\"\")+1","v":13},"",0]
["КОЛХОЗ ИМЕНИ ПЕТРОВЫХ","13Название компании",{"$f":"COUNTIF($D$1:D86,\"\")+1","v":13},"Название компании","КОЛХОЗ ИМЕНИ ПЕТРОВЫХ"]
["Адрес: 361015, Кабардино-Балкарская Республика, Прохладненский р-н, стан. Ека-териноградская, ул. Ленина, 39","13Адрес",{"$f":"COUNTIF($D$1:D87,\"\")+1","v":13},"Адрес","361015, Кабардино-Балкарская Республика, Прохладненский р-н, стан. Ека-териноградская, ул. Ленина, 3"]
["Руководитель: Говоров Сергей Анатольевич","13Руководитель",{"$f":"COUNTIF($D$1:D88,\"\")+1","v":13},"Руководитель","Говоров Сергей Анатольевич"]
["Телефон: (86631) 7-81-60, 7-85-65","13Телефон",{"$f":"COUNTIF($D$1:D89,\"\")+1","v":13},"Телефон","(86631) 7-81-60, 7-85-65"]
["Направление деятельности: зерноводство","13Направление деятельности",{"$f":"COUNTIF($D$1:D90,\"\")+1","v":13},"Направление деятельности","зерноводство"]
["Собственность: коллективная","13Собственность",{"$f":"COUNTIF($D$1:D91,\"\")+1","v":13},"Собственность","коллективная"]
[null,"14",{"$f":"COUNTIF($D$1:D92,\"\")+1","v":14},"",0]
["«КОНСТАНТИНОВСКОЕ» СЕЛЬХОЗПРЕДПРИЯТИЕ (ООО)","14Название компании",{"$f":"COUNTIF($D$1:D93,\"\")+1","v":14},"Название компании","«КОНСТАНТИНОВСКОЕ» СЕЛЬХОЗПРЕДПРИЯТИЕ (ООО)"]
["Адрес: 361504, Кабардино-Балкарская Республика, Баксанский р-н, с. Кременчуг-Константиновское, ул. Садовая, 5","14Адрес",{"$f":"COUNTIF($D$1:D94,\"\")+1","v":14},"Адрес","361504, Кабардино-Балкарская Республика, Баксанский р-н, с. Кременчуг-Константиновское, ул. Садовая,"]
["Руководитель: Лобко Александр Викторович","14Руководитель",{"$f":"COUNTIF($D$1:D95,\"\")+1","v":14},"Руководитель","Лобко Александр Викторович"]
["Телефон: (906) 483-66-06","14Телефон",{"$f":"COUNTIF($D$1:D96,\"\")+1","v":14},"Телефон","(906) 483-66-06"]
["Направление деятельности: выращивание зернобобовых культур","14Направление деятельности",{"$f":"COUNTIF($D$1:D97,\"\")+1","v":14},"Направление деятельности","выращивание зернобобовых культур"]
["Собственность: частная","14Собственность",{"$f":"COUNTIF($D$1:D98,\"\")+1","v":14},"Собственность","частная"]
[null,"15",{"$f":"COUNTIF($D$1:D99,\"\")+1","v":15},"",0]
["«КРАСНАЯ НИВА» СЕЛЬСКОХОЗЯЙСТВЕННЫЙ ПРОИЗВОДСТВЕННЫЙ КООПЕРАТИВ","15Название компании",{"$f":"COUNTIF($D$1:D100,\"\")+1","v":15},"Название компании","«КРАСНАЯ НИВА» СЕЛЬСКОХОЗЯЙСТВЕННЫЙ ПРОИЗВОДСТВЕННЫЙ КООПЕРАТИВ"]
["Адрес: 361103, Кабардино-Балкарская Республика, Майский р-н, стан. Котляревская, ул. Лебедевых, 73","15Адрес",{"$f":"COUNTIF($D$1:D101,\"\")+1","v":15},"Адрес","361103, Кабардино-Балкарская Республика, Майский р-н, стан. Котляревская, ул. Лебедевых, 73"]
["Руководитель: Шульга Петр Алексеевич","15Руководитель",{"$f":"COUNTIF($D$1:D102,\"\")+1","v":15},"Руководитель","Шульга Петр Алексеевич"]
["Телефон: (86633) 4-32-35, 4-32-32, 4-32-30","15Телефон",{"$f":"COUNTIF($D$1:D103,\"\")+1","v":15},"Телефон","(86633) 4-32-35, 4-32-32, 4-32-30"]
["Факс: (86633) 4-32-35","15Факс",{"$f":"COUNTIF($D$1:D104,\"\")+1","v":15},"Факс","(86633) 4-32-35"]
["Направление деятельности: выращивание зернобобовых культур; животноводство","15Направление деятельности",{"$f":"COUNTIF($D$1:D105,\"\")+1","v":15},"Направление деятельности","выращивание зернобобовых культур; животноводство"]
["Собственность: частная","15Собственность",{"$f":"COUNTIF($D$1:D106,\"\")+1","v":15},"Собственность","частная"]
[null,"16",{"$f":"COUNTIF($D$1:D107,\"\")+1","v":16},"",0]
["«КУБИНСКИЙ» ПЛЕМЕННОЙ ПТИЦЕЗАВОД (ОАО)","16Название компании",{"$f":"COUNTIF($D$1:D108,\"\")+1","v":16},"Название компании","«КУБИНСКИЙ» ПЛЕМЕННОЙ ПТИЦЕЗАВОД (ОАО)"]
["Адрес: 361511, Кабардино-Балкарская Республика, Баксанский р-н, с. Куба-Таба, ул. Советская, 5","16Адрес",{"$f":"COUNTIF($D$1:D109,\"\")+1","v":16},"Адрес","361511, Кабардино-Балкарская Республика, Баксанский р-н, с. Куба-Таба, ул. Советская, 5"]
["Руководитель: Небежев Салим Корнеевич","16Руководитель",{"$f":"COUNTIF($D$1:D110,\"\")+1","v":16},"Руководитель","Небежев Салим Корнеевич"]
["Телефон: (86634) 3-52-19, 3-52-10","16Телефон",{"$f":"COUNTIF($D$1:D111,\"\")+1","v":16},"Телефон","(86634) 3-52-19, 3-52-10"]
["Направление деятельности: выращивание зернобобовых культур","16Направление деятельности",{"$f":"COUNTIF($D$1:D112,\"\")+1","v":16},"Направление деятельности","выращивание зернобобовых культур"]
["Собственность: федеральная","16Собственность",{"$f":"COUNTIF($D$1:D113,\"\")+1","v":16},"Собственность","федеральная"]

{"sheet":"Лист1","index":3,"n_rows":17,"n_cols":7,"rows_kept":17,"cut":false,"hidden":false,"merged":[]}
["Название компании","Адрес","Руководитель","Телефон","Факс","Направление деятельности","Собственность"]
["«АРД-М» ООО"," 361411, Кабардино-Балкарская Республика, Чегемский р-н, с. Нартан"," Хагабанов Сафраил Хаутиевич"," (86630) 4-12-95",null," зерноводство"," частная"]
["«БАКСАНСКИЙ» ПЛОДОПИТОМНИК"," 361510, Кабардино-Балкарская Республика, Баксанский р-н, с. Псычох"," Архестов Хасан Кадырович"," (86634) 7-41-38, 7-41-48",null," выращивание плодово-ягодных культур"," государственная"]
["«БЕЛОКАМЕНСКОЕ» СЕЛЬХОЗПРЕДПРИЯТИЕ (ООО)"," 361720, Кабардино-Балкарская Республика, Зольский р-н, с. Белокаменское, ул. Центральная, 1"," Шабатоков Резван Хасинович"," (86637) 7-57-18",null," выращивание зернобобовых культур; животноводство молочное"," частная"]
["«ВИНОГРАД» НАРОДНОЕ ПРЕДПРИЯТИЕ (ЗАО)"," 361044, Кабардино-Балкарская Республика, г. Прохладный, ул. Горького, 59"," Тхалиджоков Сафарби Лионович"," (86631) 7-74-20, 7-70-50, 7-78-38"," (86631)7-71-50"," виноградарство; животноводство"," частная"]
["«ВЛАДИМИР» ПРЕДПРИЯТИЕ"," 361405, Кабардино-Балкарская Республика, Чегемский р-н, с. Лечинкай"," Дышеков Атмир Исуфович"," (909) 491-21-02",null," животноводство"," частная"]
["«ВОСХОД» ООО"," 361011, Кабардино-Балкарская Республика, Прохладненский р-н, с. Пролетарское"," Кехер Олег Аликберович"," (86631) 6-30-00",null," животноводство; растениеводство"," частная"]
["«ДАЛЬНИЙ» СП. АДМИНИСТРАЦИЯ РАЙОНА"," 361013, Кабардино-Балкарская Республика, Прохладненский р-н, с. Дальнее",null," (86631) 9-43-23",null," животноводство; растениеводство"," государственная"]
["ЗАО ИМЕНИ БАЙСУЛТАНОВА"," 361424, Кабардино-Балкарская Республика, Чегемский р-н, с. Яникой, ул. Мечиева, 84"," Гелястанов Мухтар Ахматович"," (86630) 7-82-48; (928) 700-11-50",null," животноводство молочное"," акционерная"]
["ЗАО ИМЕНИ КАЛАБЕКОВА"," 361416, Кабардино-Балкарская Республика, Чегемский р-н, с. Булунгу, ул. Кулиева, 45"," Кулиев Зафир Магомедович"," (86630) 9-43-44, 7-97-46",null," животноводство"," акционерная"]
["«ЗАРЯ» ООО"," 361013, Кабардино-Балкарская Республика, Прохладненский р-н, с. Дальнее"," Асманов К.М."," (86631) 7-01-53"," (86631) 7-01-53"," животноводство; растениеводство"," частная"]
["«КАМЫШОВАЯ БАЛКА» СЕЛЬХОЗПРЕДПРИЯТИЕ (ООО)"," 361715, Кабардино-Балкарская Республика, Зольский р-н, с. Камлюково, ул. Калмыкова, 54"," Канихов Ахмет Наурбиевич"," (86637) 7-33-30",null," растениеводство"," частная"]
["«КАСАЕВО» СЕЛЬСКОХОЗЯЙСТВЕННЫЙ ПРОИЗВОДСТВЕННЫЙ КООПЕРАТИВ"," 361503, Кабардино-Балкарская Республика, Баксанский р-н, с. Баксаненок, ул. Березгова, 120"," Кимахов Гумарби Ксниублевич"," (86634) 3-61-79; (926) 690-61-65",null," выращивание зернобобовых культур"," частная"]
["КОЛХОЗ ИМЕНИ ПЕТРОВЫХ"," 361015, Кабардино-Балкарская Республика, Прохладненский р-н, стан. Ека-териноградская, ул. Ленина, 39"," Говоров Сергей Анатольевич"," (86631) 7-81-60, 7-85-65",null," зерноводство"," коллективная"]
["«КОНСТАНТИНОВСКОЕ» СЕЛЬХОЗПРЕДПРИЯТИЕ (ООО)"," 361504, Кабардино-Балкарская Республика, Баксанский р-н, с. Кременчуг-Константиновское, ул. Садовая, 5"," Лобко Александр Викторович"," (906) 483-66-06",null," выращивание зернобобовых культур"," частная"]
["«КРАСНАЯ НИВА» СЕЛЬСКОХОЗЯЙСТВЕННЫЙ ПРОИЗВОДСТВЕННЫЙ КООПЕРАТИВ"," 361103, Кабардино-Балкарская Республика, Майский р-н, стан. Котляревская, ул. Лебедевых, 73"," Шульга Петр Алексеевич"," (86633) 4-32-35, 4-32-32, 4-32-30"," (86633) 4-32-35"," выращивание зернобобовых культур; животноводство"," частная"]
["«КУБИНСКИЙ» ПЛЕМЕННОЙ ПТИЦЕЗАВОД (ОАО)"," 361511, Кабардино-Балкарская Республика, Баксанский р-н, с. Куба-Таба, ул. Советская, 5"," Небежев Салим Корнеевич"," (86634) 3-52-19, 3-52-10",null," выращивание зернобобовых культур"," федеральная"]